bitfinex-derivatives/quotes_BNBF0:USTF0_20250130
["timestamp","ask_amount","ask_price","bid_price","bid_amount"]
[1738195203642,1.11209396,668.29,667.37,0.29968383]
[1738195210451,1.11209396,668.61,667.37,0.29968383]
[1738195211053,0.2751005,668.6,667.37,0.29968383]
[1738195212252,1.11209396,668.61,667.37,0.29968383]
[1738195212554,1.11209396,668.42,667.37,0.29968383]
[1738195213048,5.31956307,676.54,667.37,0.29968383]
[1738195213251,0.63968985,670.73,667.37,0.29968383]
[1738195213451,0.27499791,668.83,667.37,0.29968383]
[1738195214046,0.63968985,670.69,667.37,0.29968383]
[1738195214246,0.63968985,670.68,667.37,0.29968383]
[1738195214447,0.63968985,670.67,667.37,0.29968383]
[1738195214751,0.63968985,670.66,667.37,0.29968383]
[1738195214946,0.63968985,670.65,667.37,0.29968383]
[1738195215145,0.63968985,670.64,667.37,0.29968383]
[1738195215350,0.27498063,668.83,667.37,0.29968383]
[1738195216249,0.27498063,668.83,667.44,1.11981484]
[1738195217852,0.27502221,668.82,667.44,1.11981484]
[1738195218054,0.27502221,668.83,667.44,1.11981484]
[1738195218252,0.27502221,668.82,667.44,1.11981484]
[1738195218453,0.27502221,668.81,667.44,1.11981484]
[1738195218653,0.27502221,668.8,667.44,1.11981484]
[1738195218956,1.10915086,668.77,667.37,0.29968383]
[1738195219157,0.27502221,668.76,667.37,0.29968383]
[1738195221254,0.27500892,668.75,667.37,0.29968383]
[1738195221459,0.27500892,668.74,667.37,0.29968383]
[1738195221660,0.27500892,668.83,667.37,0.29968383]
[1738195221860,0.27500892,668.82,667.37,0.29968383]
[1738195222053,0.27500892,668.81,667.37,0.29968383]
[1738195222258,0.27500892,668.83,667.37,0.29968383]
[1738195222460,0.27500892,668.82,667.37,0.29968383]
[1738195222657,0.27500892,668.83,667.37,0.29968383]
[1738195222861,0.29902517,668.84,667.37,0.29968383]
[1738195223157,0.27498078,668.83,667.37,0.29968383]
[1738195224761,0.29902517,668.84,667.37,0.29968383]
[1738195224961,0.27496678,668.83,667.37,0.29968383]
[1738195225864,0.29902517,668.84,667.37,0.29968383]
[1738195226563,1.10915086,668.96,667.47,1.11981484]
[1738195226758,0.274929,668.95,667.47,1.11981484]
[1738195229262,0.29898047,668.94,667.47,1.11981484]
[1738195229466,0.274929,668.93,667.47,1.11981484]
[1738195230169,0.274929,668.93,667.37,0.29968383]
[1738195234273,0.29898047,668.94,667.37,0.29968383]
[1738195234466,0.27500835,668.93,667.37,0.29968383]
[1738195234871,0.29898047,668.94,667.37,0.29968383]
[1738195235071,0.27501169,668.93,667.37,0.29968383]
[1738195236369,0.29898941,668.92,667.37,0.29968383]
[1738195236767,0.27500982,668.91,667.37,0.29968383]
[1738195237173,0.29899835,668.9,667.37,0.29968383]
[1738195237373,0.27500982,668.89,667.37,0.29968383]
[1738195237774,0.29900729,668.88,667.37,0.29968383]
[1738195237975,0.27500982,668.87,667.37,0.29968383]
[1738195238676,0.29901623,668.86,667.37,0.29968383]
[1738195238878,0.27500982,668.85,667.37,0.29968383]
[1738195239077,0.29902517,668.84,667.37,0.29968383]
[1738195239277,0.27500982,668.83,667.37,0.29968383]
[1738195240075,0.27498546,668.82,667.37,0.29968383]
[1738195240274,0.27498546,668.83,667.37,0.29968383]
[1738195240471,0.27498546,668.82,667.37,0.29968383]
[1738195240671,0.27498546,668.81,667.37,0.29968383]
[1738195240976,0.27498546,668.8,667.37,0.29968383]
[1738195241276,0.27498546,668.79,667.43,1.11981484]
[1738195241476,0.27498546,668.83,667.43,1.11981484]
[1738195241677,0.29902517,668.84,667.43,1.11981484]
[1738195241877,0.27500346,668.83,667.43,1.11981484]
[1738195242069,0.29903411,668.82,667.43,1.11981484]
[1738195242377,0.27500346,668.81,667.43,1.11981484]
[1738195242676,0.29904306,668.8,667.43,1.11981484]
[1738195242869,0.27500346,668.79,667.43,1.11981484]
[1738195243076,0.299052,668.78,667.43,1.11981484]
[1738195243276,0.27500346,668.77,667.43,1.11981484]
[1738195244978,0.27500346,668.77,667.46,1.11981484]
[1738195244979,0.29906094,668.76,667.46,1.11981484]
[1738195245174,0.27500346,668.75,667.46,1.11981484]
[1738195245375,0.29906989,668.74,667.46,1.11981484]
[1738195245578,0.27500346,668.73,667.46,1.11981484]
[1738195246981,0.27502345,668.72,667.46,1.11981484]
[1738195247279,0.27502345,668.71,667.46,1.11981484]
[1738195247479,0.27502345,668.7,667.46,1.11981484]
[1738195247687,0.27502345,668.69,667.46,1.11981484]
[1738195247981,0.27502345,668.68,667.46,1.11981484]
[1738195248279,0.27502345,668.67,667.46,1.11981484]
[1738195248579,0.27502345,668.66,667.46,1.11981484]
[1738195248775,0.27502345,668.73,667.46,1.11981484]
[1738195248980,0.27502345,668.72,667.46,1.11981484]
[1738195249178,1.10915086,668.64,667.5,1.11981484]
[1738195249481,0.27502345,668.63,667.5,1.11981484]
[1738195250383,1.10915086,668.64,667.5,1.11981484]
[1738195250583,0.27502402,668.63,667.5,1.11981484]
[1738195252379,0.27502402,668.63,667.46,1.11981484]
[1738195252881,0.27502402,668.62,667.46,1.11981484]
[1738195253083,0.27502402,668.61,667.46,1.11981484]
[1738195253283,1.10915086,668.68,667.46,1.11981484]
[1738195253684,0.27501412,668.67,667.46,1.11981484]
[1738195253983,0.27501809,668.66,667.46,1.11981484]
[1738195254184,0.27501809,668.67,667.46,1.11981484]
[1738195254381,0.27501809,668.66,667.46,1.11981484]
[1738195254586,0.27501809,668.67,667.46,1.11981484]
[1738195254885,0.27501809,668.66,667.46,1.11981484]
[1738195255080,0.27501809,668.67,667.46,1.11981484]
[1738195255885,1.10915086,668.68,667.46,1.11981484]
[1738195255886,0.27501617,668.66,667.46,1.11981484]
[1738195256088,0.27501617,668.67,667.48,1.11981484]
[1738195256286,0.27501617,668.66,667.48,1.11981484]
[1738195256480,0.27501617,668.65,667.48,1.11981484]
[1738195256682,0.27501617,668.68,667.48,1.11981484]
[1738195256883,0.27501617,668.67,667.48,1.11981484]
[1738195257083,0.27501617,668.68,667.48,1.11981484]
[1738195257283,0.27501617,668.67,667.48,1.11981484]
[1738195257681,0.27501617,668.66,667.48,1.11981484]
[1738195257886,0.27501617,668.68,667.48,1.11981484]
[1738195258080,0.27501617,668.67,667.48,1.11981484]
[1738195258283,0.27501617,668.68,667.48,1.11981484]
[1738195258484,1.10915086,668.62,667.54,1.11981484]
[1738195258686,0.27501617,668.61,667.54,1.11981484]
[1738195261685,1.10915086,668.6,667.55,1.11981484]
[1738195261890,0.27501617,668.59,667.55,1.11981484]
[1738195264085,0.27501744,668.58,667.55,1.11981484]
[1738195264290,0.27501744,668.57,667.55,1.11981484]
[1738195264492,0.27501744,668.56,667.55,1.11981484]
[1738195264693,1.10915086,668.53,667.6,1.11981484]
[1738195264885,0.27501744,668.52,667.6,1.11981484]
[1738195265695,1.10915086,668.53,667.6,1.11981484]
[1738195265894,0.27501436,668.52,667.6,1.11981484]
[1738195266286,1.10915086,668.53,667.6,1.11981484]
[1738195267291,1.10915086,668.51,667.66,1.11981484]
[1738195270294,1.10915086,668.59,667.63,1.11981484]
[1738195270495,0.27504413,668.58,667.63,1.11981484]
[1738195272900,1.10915086,668.59,667.63,1.11981484]
[1738195273697,1.10915086,668.59,667.37,0.29968383]
[1738195273698,1.10915086,668.49,667.49,1.11981484]
[1738195275593,0.29906989,668.74,667.43,1.11981484]
[1738195275594,1.10915086,668.55,667.43,1.11981484]
[1738195278099,2.67203096,668.59,667.37,0.29968383]
[1738195280393,0.27506498,668.58,667.37,0.29968383]
[1738195281001,2.67203096,668.59,667.37,0.29968383]
[1738195281700,1.5628801,668.59,667.37,0.29968383]
[1738195281897,1.10915086,668.61,667.37,0.29968383]
[1738195284604,0.29906989,668.74,667.37,0.29968383]
[1738195284605,1.10915086,668.69,667.37,0.29968383]
[1738195284902,0.2750498,668.68,667.37,0.29968383]
[1738195285103,0.27504914,668.67,667.37,0.29968383]
[1738195285299,0.27504914,668.68,667.37,0.29968383]
[1738195285505,0.27504914,668.67,667.37,0.29968383]
[1738195285800,0.27504914,668.66,667.37,0.29968383]
[1738195286005,0.27504914,668.68,667.37,0.29968383]
[1738195286205,0.27504914,668.67,667.37,0.29968383]
[1738195286403,0.27504914,668.66,667.37,0.29968383]
[1738195286706,1.56276898,668.67,667.37,0.29968383]
[1738195287005,0.27504805,668.66,667.37,0.29968383]
[1738195287206,0.57415372,668.66,667.37,0.29968383]
[1738195287405,0.27504805,668.65,667.37,0.29968383]
[1738195287608,0.29911462,668.64,667.37,0.29968383]
[1738195287906,0.27507118,668.63,667.37,0.29968383]
[1738195288101,0.29912356,668.62,667.37,0.29968383]
[1738195288306,0.27507118,668.61,667.37,0.29968383]
[1738195288506,0.57419922,668.61,667.37,0.29968383]
[1738195288702,0.27507118,668.6,667.37,0.29968383]
[1738195290911,1.4082789,668.61,667.37,0.29968383]
[1738195291912,0.27505327,668.6,667.37,0.29968383]
[1738195294106,1.10915086,668.52,667.37,0.29968383]
[1738195294310,1.10915086,668.52,667.45,1.11981484]
[1738195297113,0.29912804,668.61,667.46,1.11981484]
[1738195297114,1.4082789,668.61,667.46,1.11981484]
[1738195297316,0.27503822,668.6,667.46,1.11981484]
[1738195300620,1.10915086,668.59,667.47,1.11981484]
[1738195300820,0.27503822,668.58,667.47,1.11981484]
[1738195302417,0.2750389,668.57,667.47,1.11981484]
[1738195302612,0.2750389,668.56,667.47,1.11981484]
[1738195302816,0.2750389,668.55,667.47,1.11981484]
[1738195303016,0.2750389,668.58,667.47,1.11981484]
[1738195303216,0.2750389,668.57,667.48,1.11981484]
[1738195304113,1.10915086,668.58,667.48,1.11981484]
[1738195304317,0.27503778,668.57,667.48,1.11981484]
[1738195304716,1.10915086,668.58,667.48,1.11981484]
[1738195307318,1.10915086,668.48,667.58,1.11981484]
[1738195310220,1.10915086,668.88,667.5,1.11981484]
[1738195310526,0.27496828,668.87,667.5,1.11981484]
[1738195312822,1.10915086,668.88,667.5,1.11981484]
[1738195313020,0.27496355,668.87,667.5,1.11981484]
[1738195313221,0.27496355,668.87,667.46,1.11981484]
[1738195313421,1.10915086,668.95,667.46,1.11981484]
[1738195313626,0.27496329,668.94,667.46,1.11981484]
[1738195314821,1.10915086,668.95,667.46,1.11981484]
[1738195315127,0.27496069,668.94,667.46,1.11981484]
[1738195316127,0.27496069,668.94,667.45,1.11981484]
[1738195316327,0.27496069,668.96,667.45,1.11981484]
[1738195316529,0.27496069,668.95,667.45,1.11981484]
[1738195316725,0.27496069,668.96,667.45,1.11981484]
[1738195316922,0.27496069,668.95,667.45,1.11981484]
[1738195317127,1.10915086,668.97,667.45,1.11981484]
[1738195317128,0.27496069,668.96,667.45,1.11981484]
[1738195317321,0.27496069,668.95,667.45,1.11981484]
[1738195317526,0.27496069,668.94,667.45,1.11981484]
[1738195317722,0.27496069,668.96,667.45,1.11981484]
[1738195317929,0.27496069,668.95,667.45,1.11981484]
[1738195318127,0.27496069,668.96,667.45,1.11981484]
[1738195318428,0.27496069,668.95,667.45,1.11981484]
[1738195318626,1.10915086,668.97,667.45,1.11981484]
[1738195318627,0.27496069,668.94,667.45,1.11981484]
[1738195318827,1.10915086,668.82,667.61,1.11981484]
[1738195319029,0.27496069,668.81,667.61,1.11981484]
[1738195321031,1.10915086,668.82,667.61,1.11981484]
[1738195322031,1.10915086,668.82,667.59,1.11981484]
[1738195324529,1.10915086,669.0,667.45,1.11981484]
[1738195324734,0.27495231,668.99,667.45,1.11981484]
[1738195326633,1.10915086,669.0,667.45,1.11981484]
[1738195326828,0.27496763,668.99,667.45,1.11981484]
[1738195327532,2.67147549,668.98,667.45,1.11981484]
[1738195327733,0.27496763,668.97,667.45,1.11981484]
[1738195329937,1.10915086,668.82,667.41,1.56234801]
[1738195330137,0.27496763,668.81,667.41,1.56234801]
[1738195332038,0.2750033,668.8,667.41,1.56234801]
[1738195332238,1.10915086,668.78,667.41,1.56234801]
[1738195332539,0.2750033,668.77,667.41,1.56234801]
[1738195333837,0.27501151,668.76,667.41,1.56234801]
[1738195334037,0.27501151,668.77,667.41,1.56234801]
[1738195334238,0.27501151,668.76,667.41,1.56234801]
[1738195334433,0.27501151,668.75,667.41,1.56234801]
[1738195334638,0.27501151,668.74,667.48,1.11981484]
[1738195334938,0.27501151,668.73,667.48,1.11981484]
[1738195335238,0.27501151,668.72,667.48,1.11981484]
[1738195335442,0.27501151,668.81,667.48,1.11981484]
[1738195335635,0.27501151,668.8,667.48,1.11981484]
[1738195335837,0.27501151,668.79,667.48,1.11981484]
[1738195336140,0.27501151,668.78,667.48,1.11981484]
[1738195336438,0.27501151,668.77,667.48,1.11981484]
[1738195336640,0.27501151,668.81,667.48,1.11981484]
[1738195336835,0.27501151,668.8,667.48,1.11981484]
[1738195337032,0.27501151,668.81,667.48,1.11981484]
[1738195337235,1.10915086,668.82,667.48,1.11981484]
[1738195337236,0.27501151,668.8,667.48,1.11981484]
[1738195337437,0.27501151,668.81,667.48,1.11981484]
[1738195337636,0.57405457,668.8,667.48,1.11981484]
[1738195337837,0.57405904,668.79,667.48,1.11981484]
[1738195338038,0.27501151,668.78,667.48,1.11981484]
[1738195338440,1.10915086,668.65,667.5,1.11981484]
[1738195338641,0.27501151,668.64,667.5,1.11981484]
[1738195338939,1.10915086,668.65,667.5,1.11981484]
[1738195341634,1.10915086,668.65,662.61,2.13171254]
[1738195341635,0.29904753,668.79,667.23,1.11981484]
[1738195341837,0.29904753,668.79,667.24,0.29974222]
[1738195344743,0.29904753,668.79,667.26,1.11981484]
[1738195345642,0.29904753,668.79,667.28,0.29972425]
[1738195347350,0.29904753,668.79,667.33,1.11981484]
[1738195347537,0.29904753,668.79,667.35,0.29969281]
[1738195348439,0.29904753,668.79,667.36,1.56224281]
[1738195348849,0.29904753,668.79,667.37,0.29968383]
[1738195350545,0.29904753,668.79,667.43,1.11981484]
[1738195351137,0.29904753,668.79,667.44,0.2996524]
[1738195353145,0.27495486,668.78,667.44,0.2996524]
[1738195353345,0.29904753,668.79,667.44,0.2996524]
[1738195355743,0.27495026,668.78,667.44,0.2996524]
[1738195356848,0.29904753,668.79,667.44,0.2996524]
[1738195357043,0.29904753,668.79,667.59,1.11981484]
[1738195361052,0.29904753,668.79,667.61,1.11981484]
[1738195364056,0.27495043,668.78,667.61,1.11981484]
[1738195364255,0.29904753,668.79,667.61,1.11981484]
[1738195365857,0.27494654,668.78,667.61,1.11981484]
[1738195366556,0.29904753,668.79,667.61,1.11981484]
[1738195366754,0.27495161,668.78,667.61,1.11981484]
[1738195368057,0.27495161,668.78,667.63,1.11981484]
[1738195368455,0.29904753,668.79,667.63,1.11981484]
[1738195372260,0.27500186,668.78,667.59,1.11981484]
[1738195373557,0.29905647,668.77,667.59,1.11981484]
[1738195373767,0.27500186,668.76,667.59,1.11981484]
[1738195374158,0.27500186,668.76,667.46,1.56221943]
[1738195374762,0.5740628,668.76,667.46,1.56221943]
[1738195375062,0.27500186,668.75,667.46,1.56221943]
[1738195376460,1.10915086,668.66,667.54,1.11981484]
[1738195376659,0.27500186,668.65,667.54,1.11981484]
[1738195380459,1.38415272,668.65,667.52,1.11981484]
[1738195380662,0.27500186,668.64,667.52,1.11981484]
[1738195382163,0.27501513,668.63,667.52,1.11981484]
[1738195382363,0.27501513,668.64,667.52,1.11981484]
[1738195382562,0.27501513,668.63,667.52,1.11981484]
[1738195382768,1.10915086,668.65,667.52,1.11981484]
[1738195383361,1.10915086,668.65,667.46,1.56221943]
[1738195383362,1.10915086,668.67,667.51,1.11981484]
[1738195383565,0.5741384,668.66,667.51,1.11981484]
[1738195383767,0.29910567,668.66,667.51,1.11981484]
[1738195385372,0.27504242,668.65,667.51,1.11981484]
[1738195387170,0.27504242,668.65,667.46,1.56221943]
[1738195388074,0.29910567,668.66,667.44,0.2996524]
[1738195388268,0.27505315,668.65,667.44,0.2996524]
[1738195388466,0.57416329,668.65,667.44,0.2996524]
[1738195388671,0.27505315,668.64,667.44,0.2996524]
[1738195389469,1.56283916,668.63,667.44,0.2996524]
[1738195392272,0.29912356,668.62,667.44,0.2996524]
[1738195392475,0.27506145,668.61,667.44,0.2996524]
[1738195392775,0.27506146,668.6,667.44,0.2996524]
[1738195392974,0.27506146,668.59,667.44,0.2996524]
[1738195393176,0.27506146,668.61,667.44,0.2996524]
[1738195393375,0.27506146,668.6,667.44,0.2996524]
[1738195396277,0.29912804,668.61,667.44,0.2996524]
[1738195396479,0.27506029,668.6,667.44,0.2996524]
[1738195396777,0.29913698,668.59,667.44,0.2996524]
[1738195397072,0.27506029,668.58,667.44,0.2996524]
[1738195397275,0.29914593,668.57,667.44,0.2996524]
[1738195397478,0.27506029,668.56,667.44,0.2996524]
[1738195397678,0.29915488,668.55,667.44,0.2996524]
[1738195397879,0.27506029,668.54,667.44,0.2996524]
[1738195398073,0.57421965,668.54,667.44,0.2996524]
[1738195398273,0.27506029,668.53,667.44,0.2996524]
[1738195399476,1.86234092,668.52,667.26,1.11981484]
[1738195399973,0.27510555,668.51,667.26,1.11981484]
[1738195400273,0.29917726,668.5,667.26,1.11981484]
[1738195400474,0.27510555,668.49,667.26,1.11981484]
[1738195401173,0.29918621,668.48,667.26,1.11981484]
[1738195401375,0.27510555,668.47,667.26,1.11981484]
[1738195401673,0.57432826,668.46,667.26,1.11981484]
[1738195401873,0.57433274,668.45,667.26,1.11981484]
[1738195402071,0.57433721,668.44,667.26,1.11981484]
[1738195402272,0.2751331,668.43,667.26,1.11981484]
[1738195402477,0.2751331,668.43,667.2,1.11981484]
[1738195405473,0.2751331,668.43,667.07,1.11981484]
[1738195406480,0.29920859,668.43,667.07,1.11981484]
[1738195407282,0.27514585,668.42,667.07,1.11981484]
[1738195408586,0.29921754,668.41,666.99,1.11981484]
[1738195408883,0.27514585,668.4,666.99,1.11981484]
[1738195409281,0.29921754,668.41,666.99,1.11981484]
[1738195409480,0.27517954,668.4,666.99,1.11981484]
[1738195412083,0.27517954,668.4,666.84,1.11981484]
[1738195412278,0.27517954,668.4,666.84,1.41973686]
[1738195412683,0.29921754,668.41,666.84,1.41973686]
[1738195412884,0.27523108,668.4,666.84,1.41973686]
[1738195415990,0.27523108,668.4,666.84,0.29992202]
[1738195416190,0.27525999,668.39,666.84,0.29992202]
[1738195416390,0.27525999,668.4,666.84,0.29992202]
[1738195416590,0.27525999,668.39,666.84,0.29992202]
[1738195416893,0.27525999,668.38,666.84,0.29992202]
[1738195417190,0.27525999,668.37,666.84,0.29992202]
[1738195417384,0.27525999,668.4,666.84,0.29992202]
[1738195417584,0.27525999,668.39,666.84,0.29992202]
[1738195417790,1.4083684,668.41,666.84,0.29992202]
[1738195417991,0.29923545,668.37,666.84,0.29992202]
[1738195418191,0.27526413,668.36,666.84,0.29992202]
[1738195418490,0.29924888,668.34,666.84,0.29992202]
[1738195418692,0.27526413,668.33,666.84,0.29992202]
[1738195419085,0.29926231,668.31,666.84,0.29992202]
[1738195419390,0.27526413,668.3,666.84,0.29992202]
[1738195419586,0.29927575,668.28,666.84,0.29992202]
[1738195419785,0.27526413,668.27,666.84,0.29992202]
[1738195421084,0.29928918,668.25,666.84,0.29992202]
[1738195421287,0.27527951,668.24,666.84,0.29992202]
[1738195421489,0.29930262,668.22,666.84,0.29992202]
[1738195421692,0.27527951,668.21,666.84,0.29992202]
[1738195421891,0.29931158,668.2,666.84,0.29992202]
[1738195422089,0.27527951,668.19,666.84,0.29992202]
[1738195422288,0.29932054,668.18,666.84,0.29992202]
[1738195422491,0.27527951,668.17,666.84,0.29992202]
[1738195428798,0.2993295,668.16,666.84,0.29992202]
[1738195429000,0.27527951,668.15,666.84,0.29992202]
[1738195429396,0.29933846,668.14,666.84,0.29992202]
[1738195429604,0.27527951,668.13,666.84,0.29992202]
[1738195430098,0.29934742,668.12,666.84,0.29992202]
[1738195430294,0.27527951,668.11,666.84,0.29992202]
[1738195430495,0.29935638,668.1,666.84,0.29992202]
[1738195430697,0.27527951,668.09,666.84,0.29992202]
[1738195430893,0.29936534,668.08,666.84,0.29992202]
[1738195431100,0.27527951,668.07,666.84,0.29992202]
[1738195431300,0.2993743,668.06,666.84,0.29992202]
[1738195431697,0.27529099,668.05,666.84,0.29992202]
[1738195432300,0.29938327,668.04,666.84,0.29992202]
[1738195432602,0.27529099,668.03,666.84,0.29992202]
[1738195433001,0.29939223,668.02,666.84,0.29992202]
[1738195433404,0.27529099,668.01,666.84,0.29992202]
[1738195433603,0.5746877,668.01,666.84,0.29992202]
[1738195433805,0.27529099,668.0,666.84,0.29992202]
[1738195434897,0.29939671,668.01,666.84,0.29992202]
[1738195435100,0.27529217,668.0,666.84,0.29992202]
[1738195436401,1.83967694,668.0,666.84,0.29992202]
[1738195436597,0.27529217,667.99,666.84,0.29992202]
[1738195436799,0.27529028,667.98,666.84,0.29992202]
[1738195437003,0.27529028,667.99,666.84,0.29992202]
[1738195437298,0.27529028,667.98,666.84,0.29992202]
[1738195437498,0.27529028,667.99,666.84,0.29992202]
[1738195437699,0.27529028,667.98,666.84,0.29992202]
[1738195438005,0.27529028,667.97,666.84,0.29992202]
[1738195438300,0.27529028,667.96,666.84,0.29992202]
[1738195438506,0.27529028,667.95,666.84,0.29992202]
[1738195438698,0.27529028,667.94,666.84,0.29992202]
[1738195438899,0.27529028,667.93,666.84,0.29992202]
[1738195439097,0.27529028,667.92,666.84,0.29992202]
[1738195439299,0.27529028,667.91,666.84,0.29992202]
[1738195439500,0.27529028,667.9,666.84,0.29992202]
[1738195439805,0.27529028,667.89,666.84,0.29992202]
[1738195440005,0.27529028,667.88,666.84,0.29992202]
[1738195440206,0.27529028,667.87,666.84,0.29992202]
[1738195440401,0.27529028,667.86,666.84,0.29992202]
[1738195440603,1.56438477,668.0,666.66,1.11981484]
[1738195440800,0.57473411,667.99,666.66,1.11981484]
[1738195441001,0.5747386,667.98,666.66,1.11981484]
[1738195441199,0.57474308,667.97,666.66,1.11981484]
[1738195441408,0.57474756,667.96,666.66,1.11981484]
[1738195441608,0.57475204,667.95,666.66,1.11981484]
[1738195441905,0.27532844,667.94,666.66,1.11981484]
[1738195442412,0.29943257,667.93,666.66,1.11981484]
[1738195443816,0.29943257,667.93,666.49,1.11981484]
[1738195444012,0.29943257,667.93,666.49,1.41989436]
[1738195444913,0.29943257,667.93,666.5,1.56461922]
[1738195446715,1.56461336,667.92,666.5,1.56461922]
[1738195446913,0.29944154,667.91,666.5,1.56461922]
[1738195447514,0.29944154,667.91,666.54,1.11981484]
[1738195450112,0.29944154,667.91,666.55,0.3000525]
[1738195450513,0.27532338,667.9,666.55,0.3000525]
[1738195450914,0.27532338,667.9,666.6,1.11981484]
[1738195451113,0.27532338,667.9,666.61,0.3000255]
[1738195452916,0.2994505,667.89,666.61,0.3000255]
[1738195453110,0.27532338,667.88,666.61,0.3000255]
[1738195453513,0.27533662,667.87,666.61,0.3000255]
[1738195453708,0.27533662,667.86,666.61,0.3000255]
[1738195453914,0.2994505,667.89,666.61,0.3000255]
[1738195454114,1.38448936,667.88,666.76,1.11981484]
[1738195454317,0.2753385,667.87,666.76,1.11981484]
[1738195456919,0.2753385,667.87,666.62,1.11981484]
[1738195456920,1.10915086,667.85,666.62,1.11981484]
[1738195457116,0.2753385,667.84,666.62,1.11981484]
[1738195457618,1.56468957,667.83,666.62,1.11981484]
[1738195457818,0.2753385,667.82,666.62,1.11981484]
[1738195458818,0.57482039,667.82,666.62,1.11981484]
[1738195459018,0.2753385,667.81,666.62,1.11981484]
[1738195459516,0.2753385,667.81,666.61,0.3000255]
[1738195460415,0.29948189,667.82,666.61,0.3000255]
[1738195460619,0.27537709,667.81,666.61,0.3000255]
[1738195461220,0.29948189,667.82,666.61,0.3000255]
[1738195468731,0.27537824,667.81,666.61,0.3000255]
[1738195473527,0.2753803,667.8,666.61,0.3000255]
[1738195473732,0.2753803,667.81,666.61,0.3000255]
[1738195474029,0.2753803,667.8,666.61,0.3000255]
[1738195474226,0.2753803,667.79,666.61,0.3000255]
[1738195474431,0.2753803,667.81,666.61,0.3000255]
[1738195474628,0.2753803,667.8,666.61,0.3000255]
[1738195474825,0.2753803,667.81,666.61,0.3000255]
[1738195475030,0.2753803,667.8,666.61,0.3000255]
[1738195475224,0.2753803,667.79,666.61,0.3000255]
[1738195475427,0.29948189,667.82,666.61,0.3000255]
[1738195475428,0.2753803,667.78,666.61,0.3000255]
[1738195475633,0.2753803,667.77,666.61,0.3000255]
[1738195475833,0.2753803,667.76,666.61,0.3000255]
[1738195476134,0.29948189,667.82,666.61,0.3000255]
[1738195476332,0.27538048,667.81,666.61,0.3000255]
[1738195477233,0.57486686,667.81,666.61,0.3000255]
[1738195477433,0.29949086,667.8,666.61,0.3000255]
[1738195477632,0.27538048,667.79,666.61,0.3000255]
[1738195477833,0.29949983,667.78,666.61,0.3000255]
[1738195478033,0.27538048,667.77,666.61,0.3000255]
[1738195478229,0.2995088,667.76,666.61,0.3000255]
[1738195478435,0.27538048,667.75,666.61,0.3000255]
[1738195478628,0.57489377,667.75,666.61,0.3000255]
[1738195478829,0.27538048,667.74,666.61,0.3000255]
[1738195479331,1.56485374,667.73,666.61,0.3000255]
[1738195479528,0.57490722,667.72,666.61,0.3000255]
[1738195479734,0.27538048,667.71,666.61,0.3000255]
[1738195480939,0.29953571,667.7,666.61,0.3000255]
[1738195481135,0.27538048,667.69,666.61,0.3000255]
[1738195481537,0.29954469,667.68,666.61,0.3000255]
[1738195481734,0.27538048,667.67,666.61,0.3000255]
[1738195483840,0.27542321,667.66,666.61,0.3000255]
[1738195484034,0.27542321,667.65,666.61,0.3000255]
[1738195484236,0.27542321,667.67,666.61,0.3000255]
[1738195484434,0.29954469,667.68,666.61,0.3000255]
[1738195484638,0.27541574,667.67,666.61,0.3000255]
[1738195485745,0.29954469,667.68,666.61,0.3000255]
[1738195486244,0.27547207,667.67,666.61,0.3000255]
[1738195486744,0.27547207,667.67,666.5,1.11981484]
[1738195489440,1.10915086,667.61,666.22,1.11981484]
[1738195489645,0.27547207,667.6,666.22,1.11981484]
[1738195490342,1.56544036,667.59,666.22,1.11981484]
[1738195490545,0.27547207,667.58,666.22,1.11981484]
[1738195490740,1.56544036,667.59,666.22,1.11981484]
[1738195492246,0.29958956,667.58,666.22,1.11981484]
[1738195492446,0.29958956,667.58,666.06,1.11981484]
[1738195492746,0.29958956,667.58,666.07,0.30026874]
[1738195494347,0.29958956,667.58,666.08,1.56538167]
[1738195496351,0.27548661,667.57,666.08,1.56538167]
[1738195497644,0.29958956,667.58,666.09,0.30025972]
[1738195497949,0.29959853,667.56,666.09,0.30025972]
[1738195498149,0.2754941,667.55,666.09,0.30025972]
[1738195498652,0.29960751,667.54,666.09,0.30025972]
[1738195499647,0.29960751,667.54,666.1,1.11981484]
[1738195499846,1.10915086,667.77,666.1,1.11981484]
[1738195502747,1.10915086,668.5,666.54,1.11981484]
[1738195502954,0.29918621,668.48,666.54,1.11981484]
[1738195503153,0.2752837,668.47,666.54,1.11981484]
[1738195504052,0.2752837,668.46,666.54,1.11981484]
[1738195504262,0.29918621,668.48,666.54,1.11981484]
[1738195504456,0.27522476,668.47,666.54,1.11981484]
[1738195504855,0.27522476,668.46,666.54,1.11981484]
[1738195505057,0.27522476,668.47,666.54,1.11981484]
[1738195505557,0.27522476,668.47,666.46,1.11981484]
[1738195505759,0.27522476,668.46,666.46,1.11981484]
[1738195506058,0.27520054,668.45,666.46,1.11981484]
[1738195506252,0.27520054,668.44,666.46,1.11981484]
[1738195506454,0.27520054,668.47,666.46,1.11981484]
[1738195506652,0.27520054,668.46,666.46,1.11981484]
[1738195506854,0.27520054,668.47,666.46,1.11981484]
[1738195507058,0.27520054,668.46,666.46,1.11981484]
[1738195507257,0.27520054,668.45,666.46,1.11981484]
[1738195507460,0.27520054,668.44,666.46,1.11981484]
[1738195507759,0.29918621,668.48,666.46,1.11981484]